Cogmind - Beta 13 @@@ ROGUE MODE // 2024.04.06 @ 18:37:54 Player: Big Tortoise Result: Destroyed by D-53 Grenadier with Mini Grenade Launcher Performance ------------- Evolutions (1) 500 Regions Visited (4) 800 Robots Destroyed (42) 210 Value Destroyed (1038) 1038 Prototype IDs (6) 120 Alien Tech Used (0) 0 Bonus (177) 177 TOTAL SCORE: 2845 Bonus ------- High Alert Combat Kills 76 Follower Combat Kills 161 Friendly Fire -60 Cogmind --------- Core Integrity 0/400 Matter 119/300 Energy 196/280 System Corruption 5% Temperature Cool (0) Movement Core (350) Ox6 Location -9/Mines Parts ------- > --- POWER (1) -------- Heavy Ion Engine > --- PROPULSION (2) --- (None) > --- UTILITY (4) ------ Medium Storage Unit > --- WEAPON (2) ------- Improved Assault Rifle > --- INVENTORY (10) --- Improved Heat Sink Authchip [Propulsion] Tractor Beam Improved Assault Rifle Peak State ------------ > --- POWER ------------ Light Nuclear Core > --- PROPULSION ------- Light Treads Wheel > --- UTILITY ---------- Improved Heat Sink Small Storage Unit Improved Targeting Computer Medium Armor Plating > --- WEAPON ----------- Light Assault Rifle Improved Assault Rifle > --- INVENTORY -------- Light Ion Engine Aluminum Leg Flight Unit Flight Unit Authchip [Propulsion] Improved Assault Rifle Light Cannon Rocket Launcher [Rating: 18] Favorites ----------- Power Light Ion Engine Engine Light Ion Engine Power Core Light Nuclear Core Propulsion Light Treads Treads Light Treads Leg Aluminum Leg Wheel Wheel Flight Unit Improved Flight Unit Utility Small Storage Unit Device Improved Terrain Scanner Storage Small Storage Unit Processor Improved Targeting Computer Protection Light Armor Plating Weapon Light Assault Rifle Energy Gun Heavy EM Pulse Gun Ballistic Gun Light Assault Rifle Ballistic Cannon Improved Light Cannon Launcher Rocket Launcher Impact Weapon Maul Build | -11 -10 -10 -9 -9 ------- Run | Yrd Mat Min Mat Min Slots Evolved 2 | . . . 2 . Power . | . . . . . Propulsion . | . . . . . Utility 2 | . . . 2 . Weapon . | . . . . . Parts Attached 49 | 8 . 4 30 7 Power 5 | 1 . 1 2 1 Engine 4 | 1 . 1 1 1 Core 1 | . . . 1 . Reactor . | . . . . . Propulsion 15 | 2 . 3 9 1 Treads 6 | 2 . . 3 1 Leg 2 | . . 2 . . Wheel 6 | . . 1 5 . Hover . | . . . . . Flight 1 | . . . 1 . Utility 13 | 3 . . 9 1 Device 5 | 2 . . 3 . Storage 4 | 1 . . 3 . Processor 2 | . . . 1 1 Hackware . | . . . . . Protection 2 | . . . 2 . Artifact . | . . . . . Weapon 16 | 2 . . 10 4 Energy Gun 1 | . . . . 1 Energy Cannon . | . . . . . Ballistic Gun 8 | 2 . . 5 1 Ballistic Cannon 2 | . . . 1 1 Launcher 4 | . . . 3 1 Special Weapon . | . . . . . Impact Weapon 1 | . . . 1 . Slashing Weapon . | . . . . . Piercing Weapon . | . . . . . Special Melee Weapon . | . . . . . Unidentified Prototypes 2 | . . . 2 . Parts Lost 17 | . . 2 3 12 Power 2 | . . 1 . 1 Propulsion 5 | . . 1 1 3 Utility 6 | . . . 2 4 Weapon 4 | . . . . 4 Highest Loss Streak 12 | . . 2 1 12 To Critical Strikes . | . . . . . Average Slot Usage (%) 96 | . 100 92 97 90 Engine 10 | . 14 7 9 10 Treads 12 | . 28 1 9 10 Leg 6 | . . 25 2 . Wheel 5 | . . . 10 9 Device 12 | . 14 14 11 8 Storage 13 | . 14 14 12 11 Processor 5 | . . . 10 8 Protection 4 | . . . 6 9 Ballistic Gun 21 | . 28 28 18 3 Ballistic Cannon 1 | . . . 1 11 Launcher 1 | . . . 2 5 Naked Turns . | . . . . . Heaviest Build 36 | 11 11 11 36 30 Greatest Support 40 | 40 40 20 20 20 Greatest Overweight (x) 3 | . . . 3 2 Average Overweight (x) . | . . . 1 1 Largest Inventory Capacity 10 | 8 8 8 10 10 Average Capacity 8 | 7 8 8 9 10 Most Carried 10 | 3 8 8 10 10 Average Carried 7 | 1 5 7 8 9 Final Capacity 10 | 8 8 8 10 10 Final Carried 10 | 3 8 8 10 4 Class Distribution -------------------- 74% | Mutant 25% | Scavenger-Mutant Dominant Class ---------------- Mutant | -10/Materials Scavenger-Mutant | -10/Mines Mutant | -9/Materials Scavenger-Mutant | -9/Mines Resources | -11 -10 -10 -9 -9 ----------- Run | Yrd Mat Min Mat Min Matter Collected 1062 | 220 162 80 566 34 Remotely . | . . . . . Salvage Created 1257 | 117 280 141 643 76 Parts 78 | 9 17 8 42 2 Haulers Intercepted 3 | . . . 3 . Recyclers Shooed 1 | . . 1 . . Parts Field Recycled . | . . . . . Retrieved Matter . | . . . . . Parts Self-Destructed . | . . . . . Prevented . | . . . . . Kills | -11 -10 -10 -9 -9 ------- Run | Yrd Mat Min Mat Min Combat Hostiles Destroyed 43 | . 9 2 18 14 Guns 22 | . 9 2 10 1 Cannons 5 | . . . 1 4 AOE 16 | . . . 7 9 Classes Destroyed 10 | 2 2 1 3 2 Worker 3 | . . 2 1 . Tunneler 2 | 2 . . . . Hauler 3 | . . . 3 . Recycler 1 | 1 . . . . Watcher 1 | . . . 1 . Swarmer 9 | . 3 . 6 . Grunt 16 | . 6 2 6 2 Sentry 6 | . . . 6 . Demolisher 1 | . . . . 1 Assembled 11 | . . . . 11 Best Kill Streak 11 | 2 4 2 8 11 Combat Bots Only 11 | . 4 2 6 11 Max Kills in Single Turn 5 | 1 1 1 3 5 Gunslinging . | . . . . . Exploded 5 | . . . 1 5 Melee . | . . . . . Uniques/NPCs Destroyed . | . . . . . Combat | -11 -10 -10 -9 -9 -------- Run | Yrd Mat Min Mat Min Hostile Shots Fired 183 | . 53 17 53 60 Missed 42 | . 16 3 12 11 Damage Taken 2493 | . 378 197 551 1367 Core 518 | . 73 37 26 382 Absorbed by Shields . | . . . . . Core Remaining (%) 78 | 100 . 56 . . Volleys Fired 136 | 12 47 14 43 20 Largest 2 | 2 2 2 2 2 Hottest 78 | 40 40 40 62 78 Shots Fired 261 | 24 94 28 78 37 Gun 214 | 24 94 28 61 7 Cannon 27 | . . . 7 20 Launcher 20 | . . . 10 10 Special . | . . . . . Kinetic 239 | 24 94 28 68 25 Thermal . | . . . . . Explosive 20 | . . . 10 10 Electromagnetic 2 | . . . . 2 Robot Hit Streak 22 | 7 8 10 22 4 Robot Miss Streak 4 | 1 3 4 2 3 Penetration Max . | . . . . . Secondary Targets 1 | . . 1 . . Max Gunslinging Chain 1 | . . 1 . . Shots Hit Robots 181 | 18 62 19 63 19 Core Hits 98 | 6 16 12 35 29 Critical Kills 1 | . . . 1 . Critical Parts Destroyed 1 | . 1 . . . Critical Strikes 2 | . 1 . 1 . Destroy 2 | . 1 . 1 . Melee Attacks . | . . . . . Impact . | . . . . . Slashing . | . . . . . Piercing . | . . . . . Sneak Attacks . | . . . . . Combat Hostiles . | . . . . . Follow-up Attacks . | . . . . . Damage Inflicted 3602 | 144 535 198 1484 1241 Guns 1580 | 144 535 198 622 81 Cannons 347 | . . . 119 228 Explosions 1675 | . . . 743 932 Melee . | . . . . . Ramming . | . . . . . Kinetic 1900 | 144 535 198 741 282 Thermal . | . . . . . Explosive 1675 | . . . 743 932 Electromagnetic 27 | . . . . 27 Impact . | . . . . . Slashing . | . . . . . Piercing . | . . . . . Highest Corruption 5 | . 1 1 1 5 Average Corruption 1 | . 1 1 1 1 Corruption Purged . | . . . . . Corruption Blocked . | . . . . . Effects 15 | . 1 4 7 3 Message Errors 1 | . 1 . . . Matter Fused 3 | . . 1 2 . Heat Flow Errors 4 | . . 2 2 . Energy Discharges 2 | . . 1 1 . Data Loss (minor) 3 | . . . . 3 Weapon Failures 2 | . . . 2 . Overload Shots . | . . . . . Overflow Damage 51 | . . . 37 14 Projectiles . | . . . . . Explosions 51 | . . . 37 14 Melee . | . . . . . Knockbacks 4 | . . . . 4 Impact . | . . . . . Kinetic 3 | . . . . 3 Secondary 1 | . . . . 1 Self-Inflicted Damage 95 | . . . 72 23 Shots 4 | . . . 3 1 Rammed . | . . . . . Targets Rammed . | . . . . . Kicked . | . . . . . Crushed . | . . . . . Highest Temperature 253 | . 12 253 167 24 Average Temperature 36 | . 7 70 51 7 Received Heat Transfer 456 | . 156 111 138 51 Siege Activations . | . . . . . Robots Corrupted . | . . . . . Combat Hostiles . | . . . . . Parts Fried . | . . . . . Impact Corruptions . | . . . . . Robots Melted . | . . . . . Combat Hostiles . | . . . . . Parts Melted . | . . . . . Heat Transferred . | . . . . . Parts Sabotaged . | . . . . . Parts Stolen . | . . . . . Parts Stripped . | . . . . . Power Chain Reactions . | . . . . . Alert | -11 -10 -10 -9 -9 ------- Run | Yrd Mat Min Mat Min Peak Influence 597 | 15 402 118 597 304 Initial 218 | . 9 78 45 218 Average 259 | 4 260 112 356 267 Maximum Alert Level 2 | . 2 . 2 1 Low Security (%) 40 | 100 30 100 19 . Level 1 39 | . 53 . 44 100 Level 2 20 | . 16 . 36 . Level 3 . | . . . . . Level 4 . | . . . . . Level 5 . | . . . . . High Security . | . . . . . Max Security . | . . . . . Squads Dispatched 6 | . 3 . 3 . Investigation 2 | . 2 . . . Extermination . | . . . . . Reinforcement 4 | . 1 . 3 . Assault . | . . . . . Garrison . | . . . . . Intercept . | . . . . . Searches Triggered . | . . . . . Construction Impeded . | . . . . . Haulers Reinforced . | . . . . . Active Scanning Responses . | . . . . . Cargo Convoy Interrupts . | . . . . . Stealth | -11 -10 -10 -9 -9 --------- Run | Yrd Mat Min Mat Min Distress Signals 5 | . 1 . 4 . Communications Jammed . | . . . . . Distress Signals . | . . . . . Times Spotted 70 | . 16 2 28 24 Peak Tracking Total 9 | . 5 2 6 9 Tactical Retreats 4 | . 3 . . 1 Traps | -11 -10 -10 -9 -9 ------- Run | Yrd Mat Min Mat Min Traps Triggered 2 | . 1 . 1 . Indirectly . | . . . . . Trap Hack Attempts . | . . . . . Triggered . | . . . . . Disarmed . | . . . . . Reprogrammed . | . . . . . Reused . | . . . . . Traps Extracted . | . . . . . Installed . | . . . . . Triggered . | . . . . . Machines | -11 -10 -10 -9 -9 ---------- Run | Yrd Mat Min Mat Min Machines Disabled 1 | . . . 1 . Max in Single Turn 1 | . . . 1 . Machines Repaired . | . . . . . Machines Dismantled . | . . . . . Machines Sabotaged . | . . . . . Overloaded Fab Kills . | . . . . . Hacking | -11 -10 -10 -9 -9 --------- Run | Yrd Mat Min Mat Min Machines Accessed 14 | . 5 . 9 . Terminals 8 | . 3 . 5 . Fabricators . | . . . . . Repair Stations 1 | . . . 1 . Recycling Units 3 | . 2 . 1 . Scanalyzers 2 | . . . 2 . Garrison Access . | . . . . . Total Hacks 31 | . 10 . 21 . Successful 21 | . 6 . 15 . Failed 10 | . 4 . 6 . Catastrophic 3 | . 2 . 1 . Database Lockouts . | . . . . . Manual 10 | . 5 . 5 . Terminals 15 | . 6 . 9 . Fabricators . | . . . . . Repair Stations 2 | . . . 2 . Recycling Units 5 | . 4 . 1 . Scanalyzers 9 | . . . 9 . Garrison Access . | . . . . . Terminal Hacks 6 | . 1 . 5 . Robot Analysis 3 | . . . 3 . Prototype ID Bank 2 | . 1 . 1 . Branch Access Points 1 | . . . 1 . Fabricator Hacks . | . . . . . Repair Station Hacks 1 | . . . 1 . Scan Component 1 | . . . 1 . Recycling Unit Hacks 3 | . 2 . 1 . Retrieve Components 3 | . 2 . 1 . Scanalyzer 8 | . . . 8 . Insert Component 3 | . . . 3 . Analyze 5 | . . . 5 . Garrison Access Hacks . | . . . . . Unauthorized Hacks 3 | . 3 . . . Terminals 1 | . 1 . . . Botnet 1 | . 1 . . . Fabricators . | . . . . . Repair Stations . | . . . . . Recycling Units 2 | . 2 . . . Tunnel 2 | . 2 . . . Scanalyzers . | . . . . . Garrison Access . | . . . . . Data Cores Recovered . | . . . . . Used . | . . . . . Hacking Detections 10 | . 4 . 6 . Full Trace Events . | . . . . . Feedback Events . | . . . . . Feedback Blocked . | . . . . . Robot Schematics Acquired . | . . . . . Robots Built . | . . . . . Authchips . | . . . . . Time . | . . . . . Total Robot Build Rating . | . . . . . Part Schematics Acquired 3 | . . . 3 . Parts Built . | . . . . . Authchips . | . . . . . Time . | . . . . . Total Part Build Rating . | . . . . . Parts Repaired . | . . . . . Time . | . . . . . Parts Recycled . | . . . . . Recycled Matter . | . . . . . Retrieved Matter . | . . . . . Retrieved Components 7 | . 5 . 2 . Parts Scanalyzed 3 | . . . 3 . Part Schematics Acquired 3 | . . . 3 . Parts Damaged 1 | . . . 1 . Bothacking | -11 -10 -10 -9 -9 ------------ Run | Yrd Mat Min Mat Min Used RIF Installer . | . . . . . Robots Hacked . | . . . . . Non-combat . | . . . . . Combat . | . . . . . Robot Hacks Applied . | . . . . . Relay Couplers Released . | . . . . . Fabnet Peak Effective % . | . . . . . Robots Rewired . | . . . . . Allies Hacked . | . . . . . Hacks Repelled . | . . . . . Allies | -11 -10 -10 -9 -9 -------- Run | Yrd Mat Min Mat Min Total Allies 3 | . . 3 . . Largest Group 3 | . . 3 3 1 Highest-Rated Group 40 | . . 40 40 16 Highest-Rated Ally 16 | . . 16 16 16 Total Orders . | . . . . . Ally Attacks 56 | . . . 56 . Total Damage 514 | . . . 514 . Kills 9 | . . . 9 . Allies Corrupted . | . . . . . Allies Melted . | . . . . . Intel | -11 -10 -10 -9 -9 ------- Run | Yrd Mat Min Mat Min Robot Analysis Total 3 | . . . 3 . Derelict Logs Recovered . | . . . . . Drone Launches . | . . . . . Drone Recoveries . | . . . . . Exploration | -11 -10 -10 -9 -9 ------------- Run | Yrd Mat Min Mat Min Turns Passed 2107 | 149 439 381 963 175 Spaces Moved 1204 | 62 193 262 599 88 Core 1 | 1 . . . . Treads 331 | 61 193 . 67 10 Legs 310 | . . 259 51 . Wheels 562 | . . 3 481 78 Hover . | . . . . . Flight . | . . . . . Fastest Speed 50 | 50 160 80 95 110 Average Speed 130 | 158 160 119 124 124 Slowest Speed 240 | 160 160 120 240 240 Overloaded Moves . | . . . . . Propulsion Burnouts . | . . . . . Robots Hopped . | . . . . . Cave-ins Triggered . | . . . . . Exploration Rate (%) 41 | 5 50 46 70 35 Regions Visited 4 Branch Regions 2 Pre-discovered Areas 2 | . 2 . . . Known Exits Taken 1 | . . . 1 . Unknown Exits Taken 3 | 1 1 1 . . Scrap Searched 1 | . . 1 . . Spaces Dug . | . . . . . Terrain Destroyed 179 | . . . 82 97 Melee . | . . . . . Projectile 5 | . . . 1 4 AOE 174 | . . . 81 93 Terrain Rammed . | . . . . . Walls Destroyed . | . . . . . Machines Disabled . | . . . . . Actions | -11 -10 -10 -9 -9 --------- Run | Yrd Mat Min Mat Min Total 1507 | 90 248 310 743 116 Wait 66 | 6 4 21 34 1 Move 1200 | 61 192 261 598 88 Hop . | . . . . . Pick Up 24 | 2 5 4 13 . Fast Attach 22 | 8 . 3 11 . Attach 11 | . . 1 4 6 Detach 4 | 1 . 1 2 . Swap 16 | . . . 15 1 Drop 28 | . . 5 23 . Fire 136 | 12 47 14 43 20 Melee . | . . . . . Ram . | . . . . . Kick . | . . . . . Crush . | . . . . . Escape Stasis . | . . . . . Rewire . | . . . . . Trap . | . . . . . Miscellaneous . | . . . . . Route ------- -11/Scrapyard -10/Materials (discovered 2 exits: *Mat / [*Min]) -10/Mines -9/Materials (discovered 6 exits: [*Mat x2] / *Min x2 / *Sto x2) -9/Mines History --------- Turn | Location | Event 31 | -11/Scrapyard | Discovered new exit (range 14) 150 | -11/Scrapyard | Entered Materials 237 | -10/Materials | Discovered new exit (range 11) 313 | -10/Materials | Build established: Mutant 565 | -10/Materials | Discovered new exit (range 14) 589 | -10/Materials | Entered Mines 751 | -10/Mines | Discovered new exit (range 9) 874 | -10/Mines | Received a Rocket Launcher from a helpful Derelict 925 | -10/Mines | Assisted by bots powering up and referring to "LRC-V3" 970 | -10/Mines | Entered Materials 970 | -9/Materials | Accompanied by 3 allies 970 | -9/Materials | Evolved 2 slots: Utility x2 1138 | -9/Materials | Identified exit to Mines 1138 | -9/Materials | Identified exit to Storage 1487 | -9/Materials | Discovered new exit (range 16) 1889 | -9/Materials | Discovered new exit (range 16) 1933 | -9/Materials | Entered Mines 1933 | -9/Mines | Accompanied by 1 ally 2040 | -9/Mines | Assembled infested the area 2045 | -9/Mines | Assisted by a Guerilla fighting off Assembled 2093 | -9/Mines | Core integrity fell below 50% 2097 | -9/Mines | Destroyed 11 combat bots 2105 | -9/Mines | Core integrity fell below 20% 2108 | -9/Mines | Destroyed by D-53 Grenadier with Mini Grenade Launcher Last Messages --------------- 02076_ Knocked back. 02076_ as-63622 destroyed. 02079_ as-68440 destroyed. 02082_ as-97897 destroyed. 02082_ Lgt. Armor Plating destroyed. 02082_ Lgt. Treads destroyed. 02083_ D-53 Grenadier knocked back. 02084_ Wheel destroyed. 02087_ D-53 Grenadier knocked back. 02088_ Cld. Ion Engine destroyed. 02088_ Imp. Targeting Computer destroyed. 02091_ Imp. Light Cannon destroyed. 02093_ The unstable cave ceiling collapses. 02096_ Lgt. Treads destroyed. 02100_ The unstable cave ceiling collapses. 02100_ D-53 Grenadier destroyed. 02101_ The unstable cave ceiling collapses. 02102_ Hvy. EM Pulse Gun destroyed. 02103_ The unstable cave ceiling collapses. 02108_ System corrupted: Component data lost. Map ----- +----------------------------------------------------+ | ?????????????????????????????????? | | ?????????# ??????????????????????? | | ????????# ??????????????????????? | | ????????# ??????????????????????? | | ????????# ??????????????????????? | | ????????# ??????? ??????????????? | | ????????# #?????# ##????????????? | | ????????# #?????# ##???????????? | | ????????# #????? ##??????????? | | ????????# #?##? % ??????????? | | ????????# #? ## # ?????????? | | ????????# ## ?????????? | | ????????# ######???? | | ????????# # % # ???? | | ????????# # # #???? | | ???????## #??# #???? | | ???????# ! ##???# #???? | | ???????# % #???# ###?# | | ???????# = % ###### ### | | ????#### # | | ????# # ## ### | | ????# % #### #### | | ????# d ### #??##### | | ????# # #?????## | | ????# ### #?????### | | ????# @ #?## #??????? | | ???# ####??? #?????? | | ???# ##?????? #????? | | ???### ###??????? ???? | | ?????## ##????????? """ ??? | | ??????#######?????????? """ ##?? | | ??????????????????????? "??? #??? | | ???????????????????????? ???? ??? | | ????????????????????????# ???????? | | ?????????????????????????#???????? | | ?????????????????????????????????? | | ?????????????????????????????????? | | ?????????????????????????????????? | | ?????????????????????????????????? | | ?????????????????????????????????? | | ?????????????????????????????????? | | ?????????????????????????????????? | | ?????????????????????????????????? | | ?????????????????????????????????? | | ?????????????????????????????????? | | ?????????????????????????????????? | | ?????????????????????????????????? | | ?????????????????????????????????? | | ?????????????????????????????????? | | ?????????????????????????????????? | +----------------------------------------------------+ Best States ------------- Heat Dissipation 52 Energy Generation 14 Energy Capacity 280 Matter Stores 300 Matter Capacity 300 Sight Range 16 Terrain Scan Range 16 Terrain Scan Density 10 Armor Coverage 225 Evasion (%) 55 Targeting Accuracy 6 Recoil Reduction 2 Authchip Count 1 Item Schematics ----------------- Med. Storage Unit | -9/Materials | Scanalyzed Sml. Storage Unit | -9/Materials | Scanalyzed Cld. Ion Engine | -9/Materials | Scanalyzed Robot Schematics ------------------ None Fabricated ------------ Nothing Alien Tech Used ----------------- None Achievements -------------- None Challenges ------------ None Game ------ Seed SpreadRelayNetwork Manual? 0 Play Time 00:28:45 Cumulative 301.2 hours Start 2024.04.05 @ 23:13:17 End 2024.04.06 @ 18:37:54 Sessions 3 Manual Loads 0 Difficulty Rogue Special Mode None Game No. 56 Rogue 12 Adventurer 43 Explorer 1 Win Type - Total 17 Types 6/0/5/4/1/0/1/0/0 Lore% 69 Gallery% 77 Achievement% 73 Wizard Run 0 Options --------- Layout 1 ASCII 0 Keyboard 0 Movement Numpad Keybinds 0 Fullscreen 1 Font 24/Smallcaps Map View 50x35 Zoom Use 0% Tactical HUD 1 Map Filters NONE Filters NONE Steam 1 RUN: 32aba9a1-aeb0-4e9a-a92e-22f3f27bab3f